[Event "Slovakian ECo-C Extraliga 2024-25"]
[Site "Slovakia"]
[Date "2025.01.19"]
[Round "4.3"]
[White "Rohacek, Miroslav"]
[Black "Babula, Vlastimil"]
[Result "0-1"]
[Annotator "TA"]
[ECO "A05"]
[WhiteElo "2235"]
[BlackElo "2497"]
[PlyCount "54"]
[EventDate "2024.09.12"]
[EventType "team-tourn"]
[EventCountry "SVK"]
[SourceTitle "playchess.com"]
[Source "ChessBase"]
[SourceQuality "1"]
[TimeControl "5400+30"]

{[%evp 12,53,6,-12,14,-37,-41,-57,-64,-64,-60,-56,-70,-66,-60,-74,-68,-48,-36,-87,-94,-97,-90,-96,-82,-157,-132,-272,-172,-379,-364,-449,-438,-793,-759,-1145,-1132,-1197,-529,-946,-802,-1986,-1752,-29999]} 1. Nf3 {[%emt 0:01:34]} Nf6 {[%emt 0:01:47]} 2. g3 {[%emt 0:01:47]} g6 {[%emt 0:02:16]} 3. b3 {[%emt 0:02:40]} Bg7 {[%emt 0:00:12]} 4. Bb2 {[%emt 0:00:09]} O-O {[%emt 0:00:08]} 5. c4 {[%emt 0:01:02]} d6 {[%emt 0:00:17]} 6. Bg2 {[%emt 0:02:08]} e5 {[%emt 0:02:03]} 7. O-O {[%emt 0:04:46]} Nfd7 {[%emt 0:05:52]} 8. d3 {[%emt 0:07:38] [#]} ({Better is} 8. d4 $11) 8... e4 $1 $15 {[%emt 0:02:33]} 9. Bxg7 {[%emt 0:06:26]} exf3 {[%emt 0:00:07]} 10. Bxf8 {[%emt 0:00:12]} fxg2 {[%emt 0:00:06]} 11. Kxg2 {[%emt 0:00:16]} Nxf8 {[%emt 0:02:30]} 12. Nc3 {[%emt 0:05:24]} Nbd7 {[%emt 0:03:00]} 13. Qd2 {[%emt 0:03:17]} Nf6 {[%emt 0:02:14]} 14. d4 {[%emt 0:08:33]} a6 {[%emt 0:06:04][%cal Ob7b5]} 15. Rae1 {[%emt 0:05:23] [#]} (15. f3 $15) 15... b5 $1 $17 {[%emt 0:14:32]} 16. e4 {[%emt 0:07:24]} (16. f3 bxc4) 16... bxc4 {[%emt 0:05:03]} 17. bxc4 {[%emt 0:00:27]} a5 {[%emt 0:00:09]} 18. f4 {[%emt 0:12:12]} (18. d5 $142) 18... Ba6 {[%emt 0:03:43]} 19. Nb5 {[%emt 0:00:37]} (19. e5 $17 N6d7 20. d5) 19... d5 {[%emt 0:03:57]} 20. e5 $2 {[%emt 0:04:56]} (20. exd5 Bxb5 21. cxb5) 20... dxc4 $19 {[%emt 0:00:17]} 21. exf6 {[%emt 0:03:10]} Bxb5 {[%emt 0:00:10]} 22. Qc3 {[%emt 0:07:27]} (22. Qd1 $142) 22... Bc6+ {[%emt 0:01:08]} 23. Kh3 {[%emt 0:01:30]} Qd5 {[%emt 0:03:43]} 24. f5 {[%emt 0:03:50]} Nd7 {[%emt 0:00:37]} (24... Qg2+ $142 25. Kg4 Qxh2 (25... Bd7 $2 26. h4 $19) 26. fxg6 hxg6 (26... Qxa2 27. gxf7+ Kh8 28. d5 $17)) 25. Kh4 {[%emt 0:04:28]} Nxf6 {[%emt 0:00:36] ( -> ...Qg2)} 26. Rf4 {[%emt 0:03:35]} h6 {[%emt 0:00:53] ( -> ...g5+)} 27. h3 {[%emt 0:01:52]} g5# {[%emt 0:00:13]} 0-1

[Event "Slovakian ECo-C Extraliga 2024-25"]
[Site "Slovakia"]
[Date "2025.01.19"]
[Round "4.4"]
[White "Baidetskyi, Valentin"]
[Black "Berczes David"]
[Result "1/2-1/2"]
[Annotator "TA"]
[ECO "B45"]
[WhiteElo "2521"]
[BlackElo "2406"]
[PlyCount "58"]
[EventDate "2024.09.12"]
[EventType "team-tourn"]
[EventCountry "SVK"]
[SourceTitle "playchess.com"]
[Source "ChessBase"]
[SourceQuality "1"]
[TimeControl "5400+30"]

{[%evp 21,58,0,0,0,0,-14,-40,-37,-19,-6,-18,-29,-23,-75,0,-119,-114,-115,-119,-117,186,-115,-115,-1685,19,-1377,-1873,-611,0,-13,0,0,0,0,0,0,0,0,0]} 1. e4 {[%emt 0:00:12]} c5 {[%emt 0:01:33]} 2. Nf3 {[%emt 0:00:08][%cal Bg1f3,Bf3d4,Bd4b5,Bb5c7][%mdl 32]} e6 {[%emt 0:00:05]} 3. d4 {[%emt 0:00:05]} cxd4 {[%emt 0:00:04]} 4. Nxd4 {[%emt 0:00:05]} Nf6 {[%emt 0:00:10]} 5. Nc3 {[%emt 0:00:06]} Nc6 {[%emt 0:00:05]} 6. Ndb5 {[%emt 0:00:09]} Bb4 {[%emt 0:00:30]} 7. Bf4 {[%emt 0:00:12]} Nxe4 {[%emt 0:01:43]} 8. Qf3 {[%emt 0:00:15]} d5 {[%emt 0:00:18]} 9. O-O-O {[%emt 0:00:59]} Bxc3 {[%emt 0:03:08]} 10. Nc7+ {[%emt 0:00:10]} Kf8 {[%emt 0:00:39]} 11. bxc3 {[%emt 0:00:09]} e5 {[%emt 0:04:41]} 12. Nxd5 {[%emt 0:01:04] B45: Sicilian Four Knights.} f5 {[%emt 0:00:11]} 13. Be3 {[%emt 0:00:31] [#]} Qa5 $1 {[%emt 0:22:32][%csl LRa2,LRc3]} 14. Bc4 {[%emt 0:01:38] Black is slightly better.} Be6 {[%emt 0:03:25][%cal Oc6e7] ...Ne7! would now be deadly.} 15. Bb3 {[%emt 0:01:57]} Rd8 {[%emt 0:07:19]} (15... Ne7 $5 16. c4 $8 b5 $14) 16. c4 {[%emt 0:02:53]} h5 $40 {[%emt 0:08:18][%mdl 128] Black attacks.} 17. h3 {[%emt 0:03:12]} (17. Rhe1 $11 {keeps the balance.}) 17... Kf7 $146 {[%emt 0:27:48]} (17... g6 $17) (17... Kg8 18. Kb2 h4 19. Rhe1 Rd7 20. Qe2 Kf7 21. f3 Ng3 22. Qd2 Qxd2 23. Rxd2 f4 {½-½ Stadler,P (1750)-Johansson,M (2241) IECG TE.2003.F.01300 email 2007}) 18. g4 {[%emt 0:02:46]} (18. Kb2 $11) 18... hxg4 $17 {[%emt 0:15:13]} 19. hxg4 {[%emt 0:00:36] [#]} Rxh1 {[%emt 0:00:14]} 20. Qxh1 {[%emt 0:05:33]} Qa3+ {[%emt 0:01:42]} 21. Kb1 {[%emt 0:00:02]} Bxd5 {[%emt 0:00:31][%csl Oe4] Strong Square Black (e4)} 22. cxd5 $4 {[%emt 0:06:22][%mdl 8192]} (22. Rxd5 $17 Nc3+ 23. Ka1 Nxd5 (23... fxg4 $2 24. Qh5+ Ke7 25. Bc5+ $18) 24. cxd5) 22... Nc3+ $19 {[%emt 0:00:18]} 23. Ka1 {[%emt 0:00:02] Chess con chili.} Na5 {[%emt 0:00:37] ( -> ...Nxb3+) A dynamic duo of knights.} 24. Rd2 {[%emt 0:00:10]} Nxb3+ $2 {[%emt 0:00:35]} (24... fxg4 25. d6+ (25. Bxa7 $2 {is the wrong capture.} Kg8 $19) 25... Nxb3+ 26. cxb3 Rxd6 (26... Ke6 27. Qg1 $11) 27. Qh5+ Kg8 28. Qe8+ Kh7 29. Qh5+ Kg8 30. Qe8+ Kh7 31. Qh5+ Kg8 $11) (24... Kg8 $19 25. gxf5 Nxa2) 25. cxb3 $11 {[%emt 0:00:02] and Rc2 would now be decisive. The position is equal.} Rxd5 {[%emt 0:00:49]} 26. Qh5+ {[%emt 0:00:32]} Kg8 {[%emt 0:00:23][%cal Ra3c1]} 27. Qe8+ {[%emt 0:00:07]} Kh7 {[%emt 0:00:30][%cal Ra3c1]} 28. Qh5+ {[%emt 0:00:07]} Kg8 {[%emt 0:00:03][%cal Ra3c1]} 29. Qe8+ {[%emt 0:00:06]} Kh7 {[%emt 0:00:02] Weighted Error Value: White=0.68/Black=0.31  Loses game:     	White=2     	---        Missed win:     	White=1     	---        Mistake:       	White=2     	Black=1      OK:         	White=1     	Black=6      Best:        	White=7     	Black=5      Strong:       	---       	Black=1} 1/2-1/2

[Event "Slovakian ECo-C Extraliga 2024-25"]
[Site "Slovakia"]
[Date "2025.01.19"]
[Round "4.4"]
[White "Pasti, Aron"]
[Black "Terbe, Julianna"]
[Result "1/2-1/2"]
[Annotator "TA"]
[ECO "B33"]
[WhiteElo "2372"]
[BlackElo "2224"]
[PlyCount "91"]
[EventDate "2024.09.12"]
[EventType "team-tourn"]
[EventCountry "SVK"]
[SourceTitle "playchess.com"]
[Source "ChessBase"]
[SourceQuality "1"]
[TimeControl "5400+30"]

{[%evp 16,91,2,9,17,0,8,6,10,0,30,20,22,0,23,27,29,0,0,-16,-33,-24,0,0,0,-4,-5,-33,-24,-26,-31,-11,-11,-99,-93,-82,-99,-93,-81,-101,-70,-81,-76,-114,-70,-143,-111,-100,0,-58,0,-128,-75,-233,-225,-240,-235,-212,-220,-259,-236,-245,-100,-108,-90,-80,-71,-71,-74,-80,-83,-83,-45,-35,-41,-35,-32,-32]} 1. e4 {[%emt 0:00:11]} c5 {[%emt 0:00:20]} 2. Nf3 {[%emt 0:00:07][%cal Bg1f3,Bf3d4,Bd4b5][%mdl 32]} Nc6 {[%emt 0:00:04]} 3. d4 {[%emt 0:00:09]} cxd4 {[%emt 0:00:05]} 4. Nxd4 {[%emt 0:00:05]} Nf6 {[%emt 0:00:09]} 5. Nc3 {[%emt 0:00:07]} e5 {[%emt 0:00:04]} 6. Ndb5 {[%emt 0:00:06]} d6 {[%emt 0:00:06]} 7. Nd5 {[%emt 0:00:05]} Nxd5 {[%emt 0:00:10]} 8. exd5 {[%emt 0:00:06]} Nb8 {[%emt 0:00:14]} 9. a4 {[%emt 0:00:08]} Be7 {[%emt 0:00:59]} 10. Bd2 {[%emt 0:00:15]} Bf5 {[%emt 0:09:19][%cal Bc8f5,Bf5e4,Be4g6,Bg6h5][%mdl 32]} 11. a5 {[%emt 0:01:37]} a6 {[%emt 0:00:25] The position is equal.} 12. Na3 {[%emt 0:00:16][%cal Oh2h4]} Be4 {[%emt 0:01:39]} 13. Qg4 {[%emt 0:15:01][%csl LRe4,LRg7]} Bg6 {[%emt 0:05:20]} 14. h4 {[%emt 0:02:35] [#] h5 would now be deadly.} f5 {[%emt 0:12:09]} 15. Qb4 {[%emt 0:00:38][%cal Oa3c4]} Nd7 {[%emt 0:00:48]} 16. O-O-O {[%emt 0:30:48][%cal Oh4h5]} O-O {[%emt 0:03:45]} 17. f4 {[%emt 0:02:27]} Bh5 {[%emt 0:10:19]} (17... Bxh4 18. fxe5 (18. Qxd6 Bf6 $16) (18. Qxb7 Bh5 $17) 18... Bg3 19. e6 $16 (19. Qxd6 Nxe5 20. Qe6+ Nf7 $16) (19. exd6 b6 $16)) 18. Re1 {[%emt 0:01:55]} Bf7 {[%emt 0:05:25]} (18... Bxh4 $6 19. g3 (19. Qxd6 Bxe1 20. Bxe1 Qe8 $15) 19... Bxg3 20. Rxh5 Bxe1 21. Bxe1 exf4 22. Bc3 $14 (22. Qxd6 Nf6 $15) (22. Qxf4 Qe8 $16)) 19. Nc4 {[%emt 0:17:41][%cal Rf4e5]} Bxd5 {[%emt 0:15:56]} 20. Nxd6 {[%emt 0:05:36]} Qc7 {[%emt 0:05:46]} 21. Bc4 {[%emt 0:04:32]} Bxc4 $40 {[%emt 0:00:15][%mdl 128] White needs to defend precisely.} (21... Qxc4 {simplifies} 22. Qxc4 Bxc4 23. Nxc4 e4) 22. Qxc4+ {[%emt 0:00:03]} Qxc4 {[%emt 0:00:06]} 23. Nxc4 {[%emt 0:00:07]} e4 {[%emt 0:00:04]} 24. g4 {[%emt 0:06:17]} fxg4 $17 {[%emt 0:07:56]} 25. Rxe4 {[%emt 0:00:32] [#]} Bc5 {[%emt 0:00:08]} 26. b4 {[%emt 0:01:21]} Nf6 {[%emt 0:00:16]} 27. Re2 {[%emt 0:00:40]} Bd4 {[%emt 0:00:33]} 28. Nd6 {[%emt 0:06:10]} Nd5 {[%emt 0:02:49] Prevents c3.} 29. Rd1 {[%emt 0:03:54]} Rad8 {[%emt 0:08:22]} (29... Nxf4 $2 30. Re4 $18) 30. Ne4 {[%emt 0:01:26]} (30. Nxb7 $15 Rc8 31. Re4) 30... Rfe8 {[%emt 0:04:52][%cal Od5e3]} (30... Nxf4 31. Bxf4 Rxf4 32. c3 $14) 31. Rde1 {[%emt 0:00:29]} h6 {[%emt 0:04:23]} ({Better is} 31... Re6 $17 32. f5 Re5) 32. h5 {[%emt 0:00:31]} (32. c4 $11 Ne7 33. h5) 32... Rf8 {[%emt 0:00:55]} ({Black should play} 32... Re7 $15 33. c4 Rc7) 33. Rf1 {[%emt 0:00:31]} (33. Rg2 $11) 33... Rd7 {[%emt 0:01:25]} (33... Rc8 $142 34. f5 Rc4) 34. Kb1 $2 {[%emt 0:00:32]} (34. c3 $17 Rc7 35. Kb2) 34... Re7 $19 {[%emt 0:00:59][%cal Od5e3] Strongly threatening ...Ne3!} 35. Ng3 {[%emt 0:00:30]} Rxe2 {[%emt 0:00:26]} 36. Nxe2 {[%emt 0:00:01]} Be3 {[%emt 0:00:32]} 37. Bxe3 {[%emt 0:00:33]} Nxe3 {[%emt 0:00:04][%mdl 4096] Endgame. KRN-KRN} 38. Rg1 {[%emt 0:00:01]} Rf5 {[%emt 0:00:59]} (38... g6 $19 {has better winning chances. Threatens to win with ...Kf7.} 39. hxg6 (39. Rg3 $2 Re8 $19) 39... Kg7) 39. Rg3 $17 {[%emt 0:00:47]} Nd5 {[%emt 0:00:08]} 40. Rxg4 {[%emt 0:00:02]} Nxb4 {[%emt 0:00:29]} 41. Nd4 {[%emt 0:01:37]} Rxh5 {[%emt 0:00:00][%cal Og8f7] White must now prevent ...Kf7!} 42. Ne6 {[%emt 0:00:00]} Kf7 {[%emt 0:00:00]} ({Of course not} 42... Rxa5 43. Rxg7+ (43. Nxg7 $2 {too greedy.} Kf7 $19) 43... Kh8 44. Rxb7 $11) 43. f5 {[%emt 0:00:00]} Nc6 {[%emt 0:00:00]} 44. Rxg7+ {[%emt 0:00:00] Black is slightly better.} Kf6 {[%emt 0:00:00]} 45. Rxb7 {[%emt 0:00:00]} Rxf5 {[%emt 0:00:00]} (45... Kxf5 $2 {perishes.} 46. Ng7+ Ke5 47. Nxh5 $18) 46. Nc7 {[%emt 0:00:00] Weighted Error Value: White=0.26 (precise) /Black=0.18 (very precise) .  Mistake:       	White=5     	Black=4      Inaccurate:     	White=3     	Black=4      OK:         	White=12    	Black=17     Best:        	White=6     	Black=2} 1/2-1/2

[Event "Slovakian ECo-C Extraliga 2024-25"]
[Site "Slovakia"]
[Date "2025.01.19"]
[Round "4.4"]
[White "Butkiewicz, Lukasz"]
[Black "Simacek, Pavel"]
[Result "1/2-1/2"]
[Annotator "TA"]
[ECO "C77"]
[WhiteElo "2339"]
[BlackElo "2426"]
[PlyCount "91"]
[EventDate "2024.09.12"]
[EventType "team-tourn"]
[EventCountry "SVK"]
[SourceTitle "playchess.com"]
[Source "ChessBase"]
[SourceQuality "1"]
[TimeControl "5400+30"]

{[%evp 13,91,2,4,2,15,12,14,28,26,12,50,43,41,39,41,47,45,46,33,32,47,50,53,40,43,43,37,12,50,15,16,21,34,37,37,10,43,26,116,45,47,22,43,47,54,47,58,53,53,62,62,61,48,37,135,141,130,128,134,91,170,170,170,0,0,6,12,16,17,29,32,32,37,0,0,0,0,0,0,0]} 1. e4 {[%emt 0:00:03]} e5 {[%emt 0:00:20]} 2. Nf3 {[%emt 0:00:05]} Nc6 {[%emt 0:00:04]} 3. Bb5 {[%emt 0:00:05][%cal Bf1b5,Bb5a4,Ba4b3][%mdl 32]} a6 {[%emt 0:00:08]} 4. Ba4 {[%emt 0:00:07]} Nf6 {[%emt 0:00:06]} 5. Nc3 {[%emt 0:00:05]} b5 {[%emt 0:03:02]} 6. Bb3 {[%emt 0:00:21]} Be7 {[%emt 0:00:29]} 7. d3 {[%emt 0:00:29]} d6 {[%emt 0:00:13]} 8. a3 {[%emt 0:00:10]} Bg4 {[%emt 0:02:15]} 9. Be3 {[%emt 0:00:33] Wards off Nd4} Nd4 {[%emt 0:19:25]} 10. Bxd4 {[%emt 0:01:40]} exd4 {[%emt 0:00:05]} 11. Nd5 {[%emt 0:00:06]} c6 {[%emt 0:00:57]} 12. h3 {[%emt 0:21:25]} Bxf3 {[%emt 0:08:48]} 13. Nxf6+ {[%emt 0:00:14]} Bxf6 {[%emt 0:00:08]} 14. Qxf3 {[%emt 0:00:04][%cal Oe4e5]} Qa5+ {[%emt 0:00:09] Black is weak on the light squares} 15. Kf1 {[%emt 0:04:03][%cal Oe4e5]} Qc7 {[%emt 0:00:21]} 16. a4 {[%emt 0:06:12]} O-O {[%emt 0:03:17]} 17. h4 {[%emt 0:03:15]} Rac8 {[%emt 0:02:21]} 18. g4 {[%emt 0:06:22]} Be5 {[%emt 0:03:53]} 19. Kg2 {[%emt 0:12:52]} Kh8 {[%emt 0:11:38]} 20. g5 {[%emt 0:03:03]} Qd7 {[%emt 0:12:59]} 21. Qf5 {[%emt 0:05:37]} Qxf5 {[%emt 0:05:12]} 22. exf5 {[%emt 0:00:04]} d5 {[%emt 0:00:19]} 23. axb5 {[%emt 0:04:29]} axb5 {[%emt 0:00:07]} 24. Ra7 {[%emt 0:00:27]} Rc7 {[%emt 0:08:28]} 25. Rha1 {[%emt 0:01:41]} Rfc8 {[%emt 0:00:46]} (25... Rxa7 $11 26. Rxa7 g6) 26. Rxc7 {[%emt 0:04:02]} (26. Ra8 $16 {Threatens to win with R1a7.} h5 27. g6) 26... Bxc7 $16 {[%emt 0:00:05][%mdl 4096] Endgame KRB-KRB} 27. Ra7 {[%emt 0:00:06]} f6 {[%emt 0:11:20]} 28. Kf3 {[%emt 0:04:04]} fxg5 {[%emt 0:01:48]} 29. hxg5 {[%emt 0:00:08]} h6 {[%emt 0:00:16]} 30. g6 {[%emt 0:03:18]} Be5 {[%emt 0:00:40]} 31. Re7 {[%emt 0:01:24]} Bf6 {[%emt 0:00:10]} 32. Re6 $1 {[%emt 0:00:33] White is more active.} Bg5 {[%emt 0:02:30]} 33. Kg4 {[%emt 0:04:41]} Bf6 {[%emt 0:02:55]} ({Black should try} 33... Bc1 $14) 34. Kf4 {[%emt 0:09:32]} h5 {[%emt 0:00:05]} 35. Ba2 {[%emt 0:00:25]} h4 {[%emt 0:00:45]} 36. Bb3 {[%emt 0:00:59]} h3 {[%emt 0:01:34]} (36... Kg8 $16) 37. Kg3 $18 {[%emt 0:00:46]} Kg8 {[%emt 0:00:03] [#]} 38. Kxh3 $2 {[%emt 0:04:35]} (38. Rxc6 $1 $18 Rxc6 39. Bxd5+ Kf8 40. Bxc6) 38... Kf8 $11 {[%emt 0:00:06]} 39. Kg4 {[%emt 0:00:08]} Rc7 {[%emt 0:00:06]} 40. Kf3 {[%emt 0:00:43]} Rc8 {[%emt 0:00:04]} 41. Kf4 {[%emt 0:00:58]} Rc7 {[%emt 0:00:22]} 42. Kg4 {[%emt 0:00:00]} Rc8 {[%emt 0:00:00]} 43. f4 {[%emt 0:00:00]} Rc7 {[%emt 0:00:00]} 44. Re1 {[%emt 0:00:00]} Ra7 {[%emt 0:00:00]} 45. Rh1 {[%emt 0:00:00]} (45. Re6 Rc7 46. Kh3 Rc8) 45... Ke7 {[%emt 0:00:00]} 46. Re1+ {[%emt 0:00:00]} 1/2-1/2

[Event "Slovakian ECo-C Extraliga 2024-25"]
[Site "Slovakia"]
[Date "2025.01.19"]
[Round "4.4"]
[White "Roubalik, Jakub"]
[Black "Zetocha, Claudiu Andrei"]
[Result "1-0"]
[Annotator "TA"]
[ECO "A40"]
[WhiteElo "2315"]
[BlackElo "2294"]
[PlyCount "71"]
[EventDate "2024.09.12"]
[EventType "team-tourn"]
[EventCountry "SVK"]
[SourceTitle "playchess.com"]
[Source "ChessBase"]
[SourceQuality "1"]
[TimeControl "5400+30"]

{[%evp 9,71,59,78,68,64,52,55,35,70,36,41,43,61,74,69,36,90,75,83,62,72,70,111,58,69,78,59,46,106,80,144,134,170,187,177,119,208,219,248,263,254,216,595,307,296,285,434,438,2490,2374,2224,1996,1635,1396,5908,5756,5235,5235,1893,1549,1422,0,1868,1840]} 1. d4 {[%emt 0:00:04]} e6 {[%emt 0:00:57]} 2. c4 {[%emt 0:00:14]} c5 {[%emt 0:01:08]} 3. d5 {[%emt 0:00:44]} exd5 {[%emt 0:00:09]} 4. cxd5 {[%emt 0:00:08]} d6 {[%emt 0:00:08]} 5. e4 {[%emt 0:01:16]} a6 {[%emt 0:03:28]} 6. a4 {[%emt 0:00:54]} g6 {[%emt 0:00:38]} 7. Nc3 {[%emt 0:01:04]} Bg7 {[%emt 0:00:26]} 8. Bd3 {[%emt 0:01:06] White is slightly better.} Ne7 {[%emt 0:02:26]} 9. h3 {[%emt 0:05:14]} Nd7 {[%emt 0:16:36]} 10. Nf3 {[%emt 0:02:12]} Ne5 {[%emt 0:05:05]} 11. Nxe5 {[%emt 0:01:22]} Bxe5 {[%emt 0:00:07]} 12. O-O {[%emt 0:10:02]} h6 {[%emt 0:19:06]} (12... f5 $14) 13. f4 $16 {[%emt 0:14:05]} Bd4+ {[%emt 0:04:32]} 14. Kh2 {[%emt 0:00:09]} f5 {[%emt 0:03:31]} 15. exf5 {[%emt 0:09:23]} gxf5 {[%emt 0:07:43]} 16. Qh5+ {[%emt 0:02:21]} (16. Re1 $16) 16... Kf8 $1 $14 {[%emt 0:01:33]} 17. Bd2 $36 {[%emt 0:03:25][%mdl 2048] Keeping Black busy.} Bd7 {[%emt 0:01:24]} 18. Rae1 {[%emt 0:03:36][%cal Oa4a5]} Be8 {[%emt 0:04:02]} ({Black should play} 18... Qe8 $14 19. Qf3 b5) 19. Qd1 {[%emt 0:10:50] White is much more active.} Bf7 {[%emt 0:00:53]} (19... Rg8 $142) 20. Ne2 $16 {[%emt 0:04:53]} Bxd5 {[%emt 0:03:47]} 21. Nxd4 {[%emt 0:01:31]} cxd4 {[%emt 0:00:05]} 22. Rf2 {[%emt 0:03:52]} (22. g4 $18) 22... Qd7 {[%emt 0:08:26]} (22... h5 $16 23. b4 h4) 23. Qh5 $18 {[%emt 0:03:00] Strongly threatening Rfe2.} Qe8 {[%emt 0:02:17]} 24. Qh4 {[%emt 0:08:58]} Qf7 {[%emt 0:02:24] Against Qf6} 25. Rfe2 {[%emt 0:02:17]} Rg8 $2 {[%emt 0:09:52] [#]} (25... Ng6 26. Qh5 Rh7) 26. Qxh6+ {[%emt 0:06:31]} (26. Rxe7 $2 Rxg2+ 27. Kh1 Rxd2+ $19 (27... Rg4+ $2 28. Kh2 $19)) 26... Qg7 {[%emt 0:00:05]} 27. Qg5 {[%emt 0:00:55]} (27. Qxd6 Qxg2+ 28. Rxg2 Rxg2+ 29. Kh1 Rg6+ $17 (29... Rxd2+ $2 30. Kg1 $18) (29... Rxd2+ $2 30. Kg1 $18)) 27... Re8 {[%emt 0:01:41]} (27... Nc6 {was necessary.} 28. Bxf5 (28. Qxf5+ Qf7 $18) 28... Bc4) 28. Bb4 {[%emt 0:03:07]} Qh8 {[%emt 0:00:11]} (28... Qxg5 $142 29. fxg5 Rxg5 30. Bxd6 Rg6) 29. Rxe7 {[%emt 0:00:32]} Rxg5 {[%emt 0:00:00]} 30. Rxe8+ {[%emt 0:00:07] Black is weak on the dark squares} Kf7 {[%emt 0:00:12]} 31. fxg5 {[%emt 0:00:38]} ({Less strong is} 31. Rxh8 Rxg2+ 32. Kh1 Rg3+ $16) 31... Qh4 {[%emt 0:00:31]} 32. R8e7+ {[%emt 0:00:53]} Kg8 {[%emt 0:00:25]} 33. Bxd6 {[%emt 0:00:37]} Qxg5 {[%emt 0:00:52]} 34. Re8+ {[%emt 0:00:34]} Kf7 {[%emt 0:00:16]} 35. R8e7+ {[%emt 0:00:47]} Kg8 $1 {[%emt 0:00:12]} 36. R1e2 {[%emt 0:00:27] Weighted Error Value: White=0.74/Black=0.52.  Mistake:       	White=2     	Black=7      Inaccurate:     	White=3     	Black=2      OK:         	White=11    	Black=4      Best:        	White=1     	Black=2      Strong:       	---       	Black=1} 1-0

[Event "Slovakian ECo-C Extraliga 2024-25"]
[Site "Slovakia"]
[Date "2025.01.19"]
[Round "4.4"]
[White "Zetocha, Claudiu Andrei"]
[Black "Roubalik, Jakub"]
[Result "*"]
[Annotator "TA"]
[ECO "A40"]
[WhiteElo "2294"]
[BlackElo "2315"]
[PlyCount "24"]
[EventDate "2024.09.12"]
[EventType "team-tourn"]
[EventCountry "SVK"]
[SourceTitle "playchess.com"]
[Source "ChessBase"]
[SourceQuality "1"]
[TimeControl "5400+30"]

{[%evp 5,10,51,66,57,68,74,79]} 1. d4 {[%emt 0:00:04]} e6 {[%emt 0:00:57]} 2. c4 {[%emt 0:00:14]} c5 {[%emt 0:01:08]} 3. d5 {[%emt 0:00:44]} exd5 {[%emt 0:00:09]} 4. cxd5 {[%emt 0:00:08] A43: Schmid Benoni.} d6 {[%emt 0:00:08]} 5. e4 {[%emt 0:01:16] OK:         	White=1     	Black=1} a6 {[%emt 0:03:28]} 6. a4 $146 g6 7. Nc3 Bg7 8. h3 Nh6 9. Nf3 O-O 10. Bd3 f5 11. O-O f4 12. e5 dxe5 {½-½ Grischuk,A (2732)-Ponkratov,P (2595) RUS-chT Blitz 2023 (8.1)} *